Cogmind - Beta 13 @@@ ROGUE MODE // 2024.04.06 @ 06:29:24 Player: Bug Result: Destroyed by G-47 Trooper with Particle Gun Performance ------------- Evolutions (2) 1000 Regions Visited (5) 1000 Robots Destroyed (25) 125 Value Destroyed (524) 524 Prototype IDs (0) 0 Alien Tech Used (0) 0 Bonus (0) 0 TOTAL SCORE: 2649 Bonus ------- None Cogmind --------- Core Integrity 0/550 Matter 202/300 Energy 220/250 System Corruption 0% Temperature Cool (9) Movement Walking (190) Ox1 Location -8/Materials Parts ------- > --- POWER (2) -------- (None) > --- PROPULSION (2) --- Improved Aluminum Leg > --- UTILITY (4) ------ Large Storage Unit Medium Battery > --- WEAPON (3) ------- (None) > --- INVENTORY (15) --- Deuterium Engine ECM Suite Light Assault Rifle Light Assault Rifle Autogun Peak State ------------ > --- POWER ------------ Reinforced Ion Engine Light Deuterium Engine > --- PROPULSION ------- Wheel Improved Hover Unit > --- UTILITY ---------- Large Storage Unit ECM Suite Improved Power Shielding Hardened Light Armor Plating > --- WEAPON ----------- Light Assault Rifle Light Assault Rifle Autogun > --- INVENTORY -------- Deuterium Engine Deuterium Engine Medium Battery ECM Suite Spread Laser Spread Laser Autogun Grenade Launcher Mining Laser [Rating: 20] Favorites ----------- Power Ion Engine Engine Ion Engine Propulsion Wheel Leg Improved Aluminum Leg Wheel Wheel Hover Unit Improved Hover Unit Utility ECM Suite Device ECM Suite Storage Large Storage Unit Protection Improved Power Shielding Weapon Assault Rifle Energy Gun Spread Laser Ballistic Gun Assault Rifle Launcher Grenade Launcher Special Weapon Mining Laser Build | -11 -10 -10 -9 -9 -8 ------- Run | Yrd Mat Min Mat Min Mat Slots Evolved 4 | . . . 2 . 2 Power 1 | . . . 1 . . Propulsion . | . . . . . . Utility 2 | . . . . . 2 Weapon 1 | . . . 1 . . Parts Attached 29 | 5 4 1 8 . 11 Power 7 | 1 1 . 3 . 2 Engine 7 | 1 1 . 3 . 2 Core . | . . . . . . Reactor . | . . . . . . Propulsion 8 | 2 1 . 3 . 2 Treads . | . . . . . . Leg 1 | . . . . . 1 Wheel 6 | 2 1 . 3 . . Hover 1 | . . . . . 1 Flight . | . . . . . . Utility 5 | . 2 . . . 3 Device 1 | . 1 . . . . Storage 2 | . 1 . . . 1 Processor . | . . . . . . Hackware . | . . . . . . Protection 2 | . . . . . 2 Artifact . | . . . . . . Weapon 9 | 2 . 1 2 . 4 Energy Gun 2 | . . . . . 2 Energy Cannon . | . . . . . . Ballistic Gun 5 | 2 . 1 2 . . Ballistic Cannon . | . . . . . . Launcher 1 | . . . . . 1 Special Weapon 1 | . . . . . 1 Impact Weapon . | . . . . . . Slashing Weapon . | . . . . . . Piercing Weapon . | . . . . . . Special Melee Weapon . | . . . . . . Unidentified Prototypes . | . . . . . . Parts Lost 24 | . 2 1 6 . 15 Power 7 | . 1 . 2 . 4 Propulsion 7 | . 1 . 3 . 3 Utility 3 | . . . . . 3 Weapon 7 | . . 1 1 . 5 Highest Loss Streak 15 | . 2 1 4 . 15 To Critical Strikes . | . . . . . . Average Slot Usage (%) 94 | . 85 100 93 100 87 Engine 16 | . 11 14 21 22 16 Wheel 22 | . 26 28 16 22 15 Device 11 | . 12 14 11 11 7 Storage 11 | . 5 14 11 11 9 Protection 2 | . . . . . 13 Ballistic Gun 28 | . 28 28 32 33 23 Naked Turns . | . . . . . . Heaviest Build 49 | 7 31 31 42 42 49 Greatest Support 32 | 20 20 20 32 26 26 Greatest Overweight (x) 10 | . 3 1 2 1 10 Average Overweight (x) . | . . 1 1 1 1 Largest Inventory Capacity 15 | 5 15 15 15 15 15 Average Capacity 13 | 5 9 15 15 15 15 Most Carried 12 | 3 6 8 12 11 11 Average Carried 7 | . 4 7 9 10 9 Final Capacity 15 | 5 15 15 15 15 15 Final Carried 11 | 1 5 8 10 11 5 Class Distribution -------------------- 57% | Mutant 18% | Gunner 13% | Scavenger-Tank 10% | Scavenger-Gunner Dominant Class ---------------- Mutant | -10/Materials Mutant | -10/Mines Gunner | -9/Materials Scavenger-Gunner | -9/Mines Scavenger-Tank | -8/Materials Resources | -11 -10 -10 -9 -9 -8 ----------- Run | Yrd Mat Min Mat Min Mat Matter Collected 821 | 298 61 205 153 28 76 Remotely . | . . . . . . Salvage Created 639 | 47 61 147 267 47 70 Parts 53 | . 6 13 23 6 5 Haulers Intercepted . | . . . . . . Recyclers Shooed 1 | . . . . . 1 Parts Field Recycled . | . . . . . . Retrieved Matter . | . . . . . . Parts Self-Destructed . | . . . . . . Prevented . | . . . . . . Kills | -11 -10 -10 -9 -9 -8 ------- Run | Yrd Mat Min Mat Min Mat Combat Hostiles Destroyed 20 | 1 2 6 7 3 1 Guns 19 | 1 2 6 7 3 . AOE 1 | . . . . . 1 Classes Destroyed 6 | 2 . 1 2 . 1 Builder 2 | . . . 2 . . Tunneler 2 | 1 . 1 . . . Watcher 1 | . . . . . 1 Swarmer 10 | . . 5 2 3 . Grunt 9 | 1 2 1 4 . 1 Brawler 1 | . . . 1 . . Best Kill Streak 5 | 2 2 5 4 3 1 Combat Bots Only 5 | 1 2 5 3 3 1 Max Kills in Single Turn 2 | 1 1 1 2 1 1 Gunslinging 1 | . . . 1 . . Exploded 1 | . . . . . 1 Melee . | . . . . . . Uniques/NPCs Destroyed . | . . . . . . Combat | -11 -10 -10 -9 -9 -8 -------- Run | Yrd Mat Min Mat Min Mat Hostile Shots Fired 250 | 11 26 29 47 32 105 Missed 55 | 2 8 7 6 6 26 Damage Taken 2874 | 98 195 205 447 208 1721 Core 782 | 10 53 42 81 40 556 Absorbed by Shields . | . . . . . . Redirected to Shielding 110 | . . . . . 110 Core Remaining (%) 74 | 96 . 58 . 69 . Volleys Fired 94 | 8 23 18 21 11 13 Largest 3 | 2 2 2 3 3 3 Hottest 130 | 40 40 40 63 63 130 Shots Fired 223 | 16 46 35 63 33 30 Gun 219 | 16 46 35 63 33 26 Cannon . | . . . . . . Launcher 4 | . . . . . 4 Special . | . . . . . . Kinetic 217 | 16 46 35 63 33 24 Thermal 2 | . . . . . 2 Explosive 4 | . . . . . 4 Electromagnetic . | . . . . . . Robot Hit Streak 11 | 6 8 5 11 6 9 Robot Miss Streak 7 | 4 3 2 6 7 3 Penetration Max . | . . . . . . Secondary Targets 3 | . . . 2 1 . Max Gunslinging Chain 1 | . . . 1 1 . Shots Hit Robots 122 | 10 26 21 36 12 17 Core Hits 52 | 3 4 9 15 4 17 Critical Kills . | . . . . . . Critical Parts Destroyed 1 | . . 1 . . . Critical Strikes 1 | . . 1 . . . Destroy 1 | . . 1 . . . Melee Attacks . | . . . . . . Impact . | . . . . . . Slashing . | . . . . . . Piercing . | . . . . . . Sneak Attacks . | . . . . . . Combat Hostiles . | . . . . . . Follow-up Attacks . | . . . . . . Damage Inflicted 1794 | 140 241 262 416 124 611 Guns 1357 | 140 241 262 416 124 174 Cannons . | . . . . . . Explosions 425 | . . . . . 425 Melee . | . . . . . . Ramming 12 | . . . . . 12 Kinetic 1308 | 140 241 262 416 124 125 Thermal 49 | . . . . . 49 Explosive 425 | . . . . . 425 Electromagnetic . | . . . . . . Impact . | . . . . . . Slashing . | . . . . . . Piercing . | . . . . . . Highest Corruption . | . . . . . . Average Corruption . | . . . . . . Corruption Purged . | . . . . . . Corruption Blocked . | . . . . . . Overload Shots . | . . . . . . Overflow Damage . | . . . . . . Projectiles . | . . . . . . Explosions . | . . . . . . Melee . | . . . . . . Knockbacks . | . . . . . . Impact . | . . . . . . Kinetic . | . . . . . . Secondary . | . . . . . . Self-Inflicted Damage 46 | . . . . . 46 Shots 1 | . . . . . 1 Rammed 3 | . . . . . 3 Targets Rammed 3 | . . . . . 3 Kicked . | . . . . . . Crushed . | . . . . . . Highest Temperature 262 | . 6 6 147 262 120 Average Temperature 73 | . 6 6 59 161 49 Received Heat Transfer 852 | 54 108 18 150 . 522 Siege Activations . | . . . . . . Robots Corrupted . | . . . . . . Combat Hostiles . | . . . . . . Parts Fried . | . . . . . . Impact Corruptions . | . . . . . . Robots Melted . | . . . . . . Combat Hostiles . | . . . . . . Parts Melted . | . . . . . . Heat Transferred 50 | . . . . . 50 Parts Sabotaged . | . . . . . . Parts Stolen . | . . . . . . Parts Stripped . | . . . . . . Power Chain Reactions . | . . . . . . Alert | -11 -10 -10 -9 -9 -8 ------- Run | Yrd Mat Min Mat Min Mat Peak Influence 203 | 25 61 118 203 148 124 Initial 78 | . 16 23 31 78 57 Average 56 | 3 26 29 103 91 90 Maximum Alert Level 1 | . . . 1 . . Low Security (%) 98 | 100 100 100 91 100 100 Level 1 1 | . . . 8 . . Level 2 . | . . . . . . Level 3 . | . . . . . . Level 4 . | . . . . . . Level 5 . | . . . . . . High Security . | . . . . . . Max Security . | . . . . . . Squads Dispatched 8 | . 1 1 2 . 4 Investigation 3 | . . 1 2 . . Extermination . | . . . . . . Reinforcement 5 | . 1 . . . 4 Assault . | . . . . . . Garrison . | . . . . . . Intercept . | . . . . . . Searches Triggered . | . . . . . . Construction Impeded . | . . . . . . Haulers Reinforced . | . . . . . . Active Scanning Responses . | . . . . . . Cargo Convoy Interrupts . | . . . . . . Stealth | -11 -10 -10 -9 -9 -8 --------- Run | Yrd Mat Min Mat Min Mat Distress Signals 4 | . . . . . 4 Communications Jammed . | . . . . . . Distress Signals . | . . . . . . Times Spotted 52 | 1 7 12 10 3 19 Peak Tracking Total 13 | 1 3 6 5 3 13 Tactical Retreats 4 | . . 3 . . 1 Traps | -11 -10 -10 -9 -9 -8 ------- Run | Yrd Mat Min Mat Min Mat Traps Triggered 1 | . . . 1 . . Indirectly . | . . . . . . Trap Hack Attempts . | . . . . . . Triggered . | . . . . . . Disarmed . | . . . . . . Reprogrammed . | . . . . . . Reused . | . . . . . . Traps Extracted . | . . . . . . Installed . | . . . . . . Triggered . | . . . . . . Machines | -11 -10 -10 -9 -9 -8 ---------- Run | Yrd Mat Min Mat Min Mat Machines Disabled 2 | . 1 . . . 1 Max in Single Turn 1 | . 1 . . . 1 Machines Repaired . | . . . . . . Machines Dismantled . | . . . . . . Machines Sabotaged . | . . . . . . Overloaded Fab Kills . | . . . . . . Hacking | -11 -10 -10 -9 -9 -8 --------- Run | Yrd Mat Min Mat Min Mat Machines Accessed 7 | . . 1 3 . 3 Terminals 7 | . . 1 3 . 3 Fabricators . | . . . . . . Repair Stations . | . . . . . . Recycling Units . | . . . . . . Scanalyzers . | . . . . . . Garrison Access . | . . . . . . Total Hacks 24 | . . 4 13 . 7 Successful 15 | . . 2 10 . 3 Failed 9 | . . 2 3 . 4 Catastrophic 2 | . . 1 . . 1 Database Lockouts . | . . . . . . Manual 2 | . . . 2 . . Terminals 24 | . . 4 13 . 7 Fabricators . | . . . . . . Repair Stations . | . . . . . . Recycling Units . | . . . . . . Scanalyzers . | . . . . . . Garrison Access . | . . . . . . Terminal Hacks 15 | . . 2 10 . 3 Record 12 | . . 2 8 . 2 Robot Analysis 2 | . . . 1 . 1 Recall Reinforcements 1 | . . . 1 . . Fabricator Hacks . | . . . . . . Repair Station Hacks . | . . . . . . Recycling Unit Hacks . | . . . . . . Scanalyzer . | . . . . . . Garrison Access Hacks . | . . . . . . Unauthorized Hacks . | . . . . . . Terminals . | . . . . . . Fabricators . | . . . . . . Repair Stations . | . . . . . . Recycling Units . | . . . . . . Scanalyzers . | . . . . . . Garrison Access . | . . . . . . Data Cores Recovered . | . . . . . . Used . | . . . . . . Hacking Detections 6 | . . 1 3 . 2 Full Trace Events 2 | . . 1 1 . . Feedback Events . | . . . . . . Feedback Blocked . | . . . . . . Robot Schematics Acquired . | . . . . . . Robots Built . | . . . . . . Authchips . | . . . . . . Time . | . . . . . . Total Robot Build Rating . | . . . . . . Part Schematics Acquired . | . . . . . . Parts Built . | . . . . . . Authchips . | . . . . . . Time . | . . . . . . Total Part Build Rating . | . . . . . . Parts Repaired . | . . . . . . Time . | . . . . . . Parts Recycled . | . . . . . . Recycled Matter . | . . . . . . Retrieved Matter . | . . . . . . Retrieved Components . | . . . . . . Parts Scanalyzed . | . . . . . . Part Schematics Acquired . | . . . . . . Parts Damaged . | . . . . . . Bothacking | -11 -10 -10 -9 -9 -8 ------------ Run | Yrd Mat Min Mat Min Mat Used RIF Installer . | . . . . . . Robots Hacked . | . . . . . . Non-combat . | . . . . . . Combat . | . . . . . . Robot Hacks Applied . | . . . . . . Relay Couplers Released . | . . . . . . Fabnet Peak Effective % . | . . . . . . Robots Rewired . | . . . . . . Allies Hacked . | . . . . . . Hacks Repelled . | . . . . . . Allies | -11 -10 -10 -9 -9 -8 -------- Run | Yrd Mat Min Mat Min Mat Total Allies . | . . . . . . Largest Group . | . . . . . . Highest-Rated Group . | . . . . . . Highest-Rated Ally . | . . . . . . Total Orders . | . . . . . . Ally Attacks . | . . . . . . Total Damage . | . . . . . . Kills . | . . . . . . Allies Corrupted . | . . . . . . Allies Melted . | . . . . . . Intel | -11 -10 -10 -9 -9 -8 ------- Run | Yrd Mat Min Mat Min Mat Robot Analysis Total 2 | . . . 1 . 1 Derelict Logs Recovered 1 | . . . . 1 . Drone Launches . | . . . . . . Drone Recoveries . | . . . . . . Exploration | -11 -10 -10 -9 -9 -8 ------------- Run | Yrd Mat Min Mat Min Mat Turns Passed 1253 | 87 170 445 246 89 216 Spaces Moved 896 | 72 106 385 138 48 147 Core 19 | 17 . . . . 2 Treads . | . . . . . . Legs . | . . . . . . Wheels 877 | 55 106 385 138 48 145 Hover . | . . . . . . Flight . | . . . . . . Fastest Speed 50 | 50 80 95 95 105 105 Average Speed 97 | 72 84 95 109 105 111 Slowest Speed 550 | 80 125 95 130 105 550 Overloaded Moves . | . . . . . . Propulsion Burnouts . | . . . . . . Robots Hopped . | . . . . . . Cave-ins Triggered . | . . . . . . Exploration Rate (%) 28 | 9 27 79 19 17 20 Regions Visited 5 Branch Regions 2 Pre-discovered Areas . | . . . . . . Known Exits Taken . | . . . . . . Unknown Exits Taken 5 | 1 1 1 1 1 . Scrap Searched . | . . . . . . Spaces Dug . | . . . . . . Terrain Destroyed 19 | . . . . . 19 Melee . | . . . . . . Projectile . | . . . . . . AOE 19 | . . . . . 19 Terrain Rammed . | . . . . . . Walls Destroyed . | . . . . . . Machines Disabled . | . . . . . . Actions | -11 -10 -10 -9 -9 -8 --------- Run | Yrd Mat Min Mat Min Mat Total 1103 | 90 139 430 197 68 179 Wait 55 | . . 23 21 9 2 Move 891 | 71 105 384 137 47 147 Hop . | . . . . . . Pick Up 31 | 6 7 4 10 1 3 Fast Attach 1 | . 1 . . . . Attach 26 | 5 3 1 8 . 9 Detach . | . . . . . . Swap 2 | . . . . . 2 Drop . | . . . . . . Fire 94 | 8 23 18 21 11 13 Melee . | . . . . . . Ram 3 | . . . . . 3 Kick . | . . . . . . Crush . | . . . . . . Escape Stasis . | . . . . . . Rewire . | . . . . . . Trap . | . . . . . . Miscellaneous . | . . . . . . Route ------- -11/Scrapyard -10/Materials -10/Mines -9/Materials -9/Mines -8/Materials (discovered 1 exit: Sto) History --------- Turn | Location | Event 2 | -11/Scrapyard | Met Revision 17 54 | -11/Scrapyard | Discovered new exit (range 8) 88 | -11/Scrapyard | Entered Materials 179 | -10/Materials | Discovered new exit (range 15) 258 | -10/Materials | Entered Mines 293 | -10/Mines | YI-UF0 nonchalantly dropped a Grenade Launcher on the ground 304 | -10/Mines | Build established: Mutant 349 | -10/Mines | Assembled infested the area 693 | -10/Mines | Discovered new exit (range 12) 703 | -10/Mines | Entered Materials 703 | -9/Materials | Evolved 2 slots: Power x1, Weapon x1 839 | -9/Materials | Lost 4 parts (1p2n1w) 934 | -9/Materials | Discovered new exit (range 14) 949 | -9/Materials | Entered Mines 998 | -9/Mines | Discovered new exit (range 11) 1038 | -9/Mines | Entered Materials 1038 | -8/Materials | Evolved 2 slots: Utility x2 1039 | -8/Materials | Identified exit to Storage 1249 | -8/Materials | Core integrity fell below 50% 1252 | -8/Materials | Core integrity fell below 20% 1254 | -8/Materials | Destroyed by G-47 Trooper with Particle Gun Last Messages --------------- 01234_ Grenade Launcher destroyed. 01235_ Imp. Hover Unit destroyed. 01235_ U-05 Engineer builds a Door. 01236_ Knocked back. 01237_ Acquired 44 matter. 01237_ W-25 Informer sends out distress signal. 01240_ U-05 Engineer lays Concrete. 01240_ Spread Laser destroyed. 01240_ G-47 Trooper destroyed. 01245_ G-47 Trooper knocked back. 01246_ U-05 Engineer lays Concrete. 01247_ Deuterium Engine destroyed. 01248_ U-05 Engineer lays Concrete. 01249_ Spread Laser destroyed. 01250_ U-05 Engineer builds a Wall. 01251_ U-05 Engineer lays Concrete. 01251_ Acquired Imp. Aluminum Leg. 01252_ U-05 Engineer lays Concrete. 01253_ U-05 Engineer builds a Wall. 01253_ U-05 Engineer lays Concrete. Map ----- +----------------------------------------------------+ | ????????????????# ########### ####???????? | | ????????????????# ??????? | | ???????????????## ??????? | | ???????????????+ ??????? | | ???????????????### ###+######+####??????????? | | ?????????????????# # #?? #??????????? | | ?????????????????# + """ #? #??????????? | | ?????????????????# ## """ # """ #??????????? | | ?????????????????# ##[ """ # """ #??????????? | | ?????????????????# ?# + """ #??????????? | | ?????????????????# ?# # #??????????? | | ????????????## ### #######/################### | | ????????????# + | | ????????????# ##### ##### ######## | | ????????????# u#####+#####+######## | | ????????????# # u # ## | | ?????"""???## u # """ ## | | ???""T"" # = % # """ ## | | ????? + "" #" """ ##+######+### | | ???????????# "" #" # | | ???????????# "" #" """ + | | ???????????## " #T """ # | | ????????????# # [HY " #" """ ### ##### ### | | ????????????# ?# gggg #" #?# #???# #?? | | ????????????#??# % ;gg###" #?# #???# #?? | | ???????????????# "T"g@##?# #?#+#####+### | | ???????????????# %Y#??#########?# | | ???????????????#g *%#????????????# | | ????????????? + #????????????# | | ????????????# # o/ #????????????# | | ????????????# # /] ????????????# | | ??????????? ?########????????????# | | ?????????? ?????????????????????# | | ???????? ?????????????????????????########### | | ?????????????????????????????????????????????? | | ?????????????????????????????????????????????? | | ?????????????????????????????????????????????? | | ??????????????????????>??????????????????????? | | ?????????????????????????????????????????????? | | ?????????????????????????????????????????????? | | ?????????????????????????????????????????????? | | ?????????????????????????????????????????????? | | ?????????????????????????????????????????????? | | ?????????????????????????????????????????????? | | ?????????????????????????????????????????????? | | | | | | | | | | | +----------------------------------------------------+ Best States ------------- Heat Dissipation 31 Energy Generation 21 Energy Capacity 415 Matter Stores 300 Matter Capacity 300 Sight Range 16 Terrain Scan Density 10 ECM Strength 1 Armor Coverage 150 Power Shielding 66 Evasion (%) 50 Item Schematics ----------------- None Robot Schematics ------------------ None Fabricated ------------ Nothing Alien Tech Used ----------------- None Achievements -------------- I Survived The Infestation Librarian Challenges ------------ None Game ------ Seed NavigationNuclearMallet Manual? 0 Play Time 00:22:51 Cumulative 2.7 hours Start 2024.04.06 @ 06:06:59 End 2024.04.06 @ 06:29:24 Sessions 1 Manual Loads 0 Difficulty Rogue Special Mode None Game No. 3 Rogue 3 Adventurer 0 Explorer 0 Win Type - Total 0 Types 0/0/0/0/0/0/0/0/0 Lore% 3 Gallery% 8 Achievement% 7 Wizard Run 0 Options --------- Layout 1 ASCII 0 Keyboard 0 Movement Mouse Keybinds 0 Fullscreen 2 Font 24/Smallcaps Map View 50x35 Zoom Use 0% Tactical HUD 1 Map Filters NONE Filters NONE Steam 1 RUN: 5bc4e8e5-eb3f-4421-9cff-323a6f164bb0